bitfinex-derivatives/quotes_BTCF0:USTF0_20250822
["timestamp","ask_amount","ask_price","bid_price","bid_amount"]
[1755850154340,0.17854431,113310.0,113300.0,0.84723733]
[1755850154639,0.17854431,113310.0,113300.0,1.12540752]
[1755850154834,0.17854431,113310.0,113300.0,0.56906714]
[1755850155037,0.4567145,113310.0,113300.0,0.84723733]
[1755850155846,0.17854431,113310.0,113300.0,0.84723733]
[1755850156343,0.17854431,113310.0,113300.0,1.12540752]
[1755850156534,0.4567145,113310.0,113300.0,1.12540752]
[1755850157042,0.4567145,113310.0,113300.0,0.56906714]
[1755850157234,0.4567145,113310.0,113300.0,0.84723733]
[1755850157448,0.4567145,113310.0,113300.0,0.93551463]
[1755850157836,0.17854431,113310.0,113300.0,0.84723733]
[1755850158744,0.17854431,113310.0,113300.0,0.56906714]
[1755850158943,0.17854431,113310.0,113300.0,0.84723733]
[1755850159346,0.17854431,113310.0,113300.0,0.61662972]
[1755850159542,0.17854431,113310.0,113300.0,0.89479991]
[1755850161348,0.17854431,113310.0,113300.0,0.61662972]
[1755850161550,0.14564431,113310.0,113300.0,1.1729701]
[1755850161845,0.17724431,113310.0,113300.0,0.61662972]
[1755850162045,0.17724431,113310.0,113300.0,0.89479991]
[1755850162046,0.4554145,113310.0,113300.0,0.89479991]
[1755850162248,0.4554145,113310.0,113300.0,0.61662972]
[1755850162648,0.4554145,113310.0,113300.0,0.89479991]
[1755850163346,0.47391959,113310.0,113300.0,0.89479991]
[1755850164244,0.47391959,113310.0,113300.0,0.56906714]
[1755850164548,0.47391959,113310.0,113300.0,0.84723733]
[1755850165851,0.47391959,113310.0,113300.0,0.77718615]
[1755850166450,0.1957494,113310.0,113300.0,0.77718615]
[1755850166652,0.47391959,113310.0,113300.0,0.77718615]
[1755850167153,0.47391959,113310.0,113300.0,0.49901596]
[1755850167355,0.47391959,113310.0,113300.0,0.77718615]
[1755850168250,0.47391959,113310.0,113300.0,0.49901596]
[1755850168447,0.49677959,113310.0,113300.0,0.77718615]
[1755850168842,0.49677959,113310.0,113300.0,0.82487641]
[1755850169048,0.49677959,113310.0,113300.0,0.54670622]
[1755850169250,0.49677959,113310.0,113300.0,0.77718615]
[1755850170346,1.0468494,113310.0,113300.0,0.77718615]
[1755850170555,1.32501959,113310.0,113300.0,0.77718615]
[1755850172163,1.0468494,113310.0,113300.0,0.77718615]
[1755850172351,1.32501959,113310.0,113300.0,0.77718615]
[1755850172957,1.0468494,113310.0,113300.0,0.77718615]
[1755850173154,1.30215959,113310.0,113300.0,0.77718615]
[1755850173851,1.30215959,113310.0,113300.0,0.49901596]
[1755850174158,1.30215959,113310.0,113300.0,0.77718615]
[1755850174857,1.32501959,113310.0,113300.0,0.77718615]
[1755850176064,1.32401959,113310.0,113300.0,0.77718615]
[1755850177863,1.32301959,113310.0,113300.0,0.77718615]
[1755850178065,1.0448494,113310.0,113300.0,0.77718615]
[1755850178456,1.32301959,113310.0,113300.0,0.77718615]
[1755850179563,1.0448494,113310.0,113300.0,0.77718615]
[1755850179765,1.32301959,113310.0,113300.0,0.77718615]
[1755850180861,1.32307777,113310.0,113300.0,0.77718615]
[1755850182367,1.14695172,113310.0,113300.0,0.77718615]
[1755850182766,1.40315172,113310.0,113300.0,0.09143596]
[1755850182959,1.68132191,113310.0,113300.0,0.09143596]
[1755850183159,1.40315172,113310.0,113300.0,0.09143596]
[1755850183457,1.40315172,113310.0,113300.0,0.13914205]
[1755850183859,2.04212191,113310.0,113300.0,0.09054205]
[1755850184361,2.05211191,113310.0,113300.0,0.09054205]
[1755850184566,2.08371191,113310.0,113300.0,0.09054205]
[1755850184770,2.08371191,113310.0,113300.0,0.07050609]
[1755850185207,2.08371191,113310.0,113300.0,0.0228]
[1755850185663,0.09614,113300.0,113290.0,0.11823609]
[1755850185862,1.03184365,113300.0,113290.0,0.11823609]
[1755850187569,1.03184365,113300.0,113290.0,0.07153]
[1755850187978,1.03184365,113300.0,113290.0,0.0242]
[1755850188873,1.23328365,113300.0,113290.0,0.0242]
[1755850190573,0.67694327,113300.0,113290.0,0.0242]
[1755850190873,1.23328365,113300.0,113290.0,0.0242]
[1755850193677,1.23428365,113300.0,113290.0,0.0232]
[1755850198076,1.23428365,113300.0,113290.0,0.05513]
[1755850198475,1.23428365,113300.0,113290.0,0.0862]
[1755850198676,0.67794327,113300.0,113290.0,0.1205]
[1755850198870,1.23428365,113300.0,113290.0,0.1205]
[1755850200779,0.67794327,113300.0,113290.0,0.10592]
[1755850200982,1.23428365,113300.0,113290.0,0.07162]
[1755850202787,1.23428365,113300.0,113290.0,0.05513]
[1755850203185,1.23428365,113300.0,113290.0,0.03225]
[1755850203388,1.23428365,113300.0,113290.0,0.0232]
[1755850204481,0.09712,113290.0,113280.0,0.0447568]
[1755850204683,1.58001346,113290.0,113280.0,0.0766868]
[1755850204984,1.85818365,113290.0,113280.0,0.05665]
[1755850205192,1.85813206,113290.0,113280.0,0.02472]
[1755850205590,1.30179168,113290.0,113280.0,0.0476]
[1755850205991,1.30179168,113290.0,113280.0,0.02472]
[1755850205992,1.85813206,113290.0,113280.0,0.02472]
[1755850207190,1.85813206,113290.0,113280.0,0.0476]
[1755850207492,1.57996187,113290.0,113280.0,0.0476]
[1755850207691,1.85813206,113290.0,113280.0,0.02472]
[1755850209490,0.0615,113280.0,113270.0,0.02472]
[1755850209694,0.67196848,113280.0,113270.0,0.02472]
[1755850210003,0.67196848,113280.0,113270.0,0.05665]
[1755850210198,0.1156281,113280.0,113270.0,0.09095]
[1755850210493,0.67196848,113280.0,113270.0,0.09095]
[1755850210697,0.67196848,113280.0,113270.0,0.10844]
[1755850211591,0.67196848,113280.0,113270.0,0.38661019]
[1755850211793,0.67196848,113280.0,113270.0,0.40119019]
[1755850212495,0.68234197,113280.0,113270.0,0.12302]
[1755850212994,0.86438197,113280.0,113270.0,0.12302]
[1755850215295,0.86438197,113280.0,113270.0,0.40119019]
[1755850215496,0.86438197,113280.0,113270.0,0.12302]
[1755850217197,0.30804159,113280.0,113270.0,0.12302]
[1755850217398,0.86438197,113280.0,113270.0,0.12302]
[1755850219998,0.86438197,113280.0,113270.0,0.07414]
[1755850220391,0.86438197,113280.0,113270.0,0.10906]
[1755850220791,0.86438197,113280.0,113270.0,0.12337]
[1755850221591,0.30804159,113280.0,113270.0,0.12337]
[1755850221997,0.86438197,113280.0,113270.0,0.12337]
[1755850223202,0.86438197,113280.0,113270.0,0.08845]
[1755850223397,1.40007178,113280.0,113270.0,0.40154019]
[1755850223598,0.57723178,113280.0,113270.0,0.40154019]
[1755850223806,1.08845159,113280.0,113270.0,0.40154019]
[1755850224002,1.39904178,113280.0,113270.0,0.40154019]
[1755850224908,1.21700178,113280.0,113270.0,0.40154019]
[1755850225791,0.39460178,113280.0,113270.0,0.40154019]
[1755850225996,1.21664178,113280.0,113270.0,0.40154019]
[1755850227110,1.21664178,113280.0,113270.0,0.76234019]
[1755850228105,0.93847159,113280.0,113270.0,0.76234019]
[1755850228403,1.21664178,113280.0,113270.0,0.48417]
[1755850228605,1.21664178,113280.0,113270.0,0.76234019]
[1755850229507,0.93847159,113280.0,113270.0,0.81004628]
[1755850229907,1.21664178,113280.0,113270.0,0.81004628]
[1755850230703,1.22562178,113280.0,113270.0,0.81004628]
[1755850230903,0.94745159,113280.0,113270.0,0.81004628]
[1755850231204,1.20711368,113280.0,113270.0,0.81004628]
[1755850231404,1.22563953,113280.0,113270.0,0.81004628]
[1755850232813,1.22563953,113280.0,113270.0,0.53187609]
[1755850233009,1.22563953,113280.0,113270.0,0.81004628]
[1755850233214,0.40359953,113280.0,113270.0,0.81004628]
[1755850233419,1.22419953,113280.0,113270.0,0.81004628]
[1755850233814,0.94602934,113280.0,113270.0,0.17107609]
[1755850234120,1.22419953,113280.0,113270.0,0.44924628]
[1755850234316,1.22419953,113280.0,113270.0,0.17107609]
[1755850234522,1.50236972,113280.0,113270.0,0.07342609]
[1755850234713,1.50236972,113280.0,113270.0,0.35159628]
[1755850235119,1.22419953,113280.0,113270.0,0.15505609]
[1755850235320,1.50236972,113280.0,113270.0,0.44753628]
[1755850235720,0.94602934,113280.0,113270.0,0.44753628]
[1755850236020,0.92750349,113280.0,113270.0,0.44753628]
[1755850236215,0.92750349,113280.0,113270.0,0.16936609]
[1755850236216,1.22412873,113280.0,113270.0,0.16936609]
[1755850236612,1.22412873,113280.0,113270.0,0.43322628]
[1755850236818,1.50229892,113280.0,113270.0,0.43322628]
[1755850237125,1.68609892,113280.0,113270.0,0.16936609]
[1755850237326,1.68609892,113280.0,113270.0,0.44753628]
[1755850238624,0.86549892,113280.0,113270.0,0.44753628]
[1755850238830,1.68597892,113280.0,113270.0,0.44753628]
[1755850239126,1.40780873,113280.0,113270.0,0.44753628]
[1755850239426,1.40780873,113280.0,113270.0,0.16936609]
[1755850239626,1.68597892,113280.0,113270.0,0.44753628]
[1755850239825,1.68597892,113280.0,113270.0,0.16936609]
[1755850240123,1.68597892,113280.0,113270.0,0.44753628]
[1755850240925,1.12963854,113280.0,113270.0,0.44753628]
[1755850241123,1.40780873,113280.0,113270.0,0.44753628]
[1755850241326,1.40780873,113280.0,113270.0,0.12013609]
[1755850241526,1.40780873,113280.0,113270.0,0.39830628]
[1755850241717,1.40780873,113280.0,113270.0,0.12013609]
[1755850241918,1.40780873,113280.0,113270.0,0.10434609]
[1755850242118,1.40780873,113280.0,113270.0,0.07342609]
[1755850242620,1.12963854,113280.0,113270.0,0.09509609]
[1755850242821,1.12963854,113280.0,113270.0,0.10434609]
[1755850243023,1.68597892,113280.0,113270.0,0.41743628]
[1755850243329,1.68597892,113280.0,113270.0,0.43322628]
[1755850244124,1.68597892,113280.0,113270.0,0.15505609]
[1755850244326,1.68597892,113280.0,113270.0,0.39830628]
[1755850244521,1.66646892,113280.0,113270.0,0.39830628]
[1755850244732,1.49457408,113280.0,113270.0,0.44753628]
[1755850246232,1.49457408,113280.0,113270.0,0.16936609]
[1755850246420,1.49457408,113280.0,113270.0,0.44753628]
[1755850246828,1.49457408,113280.0,113270.0,0.16936609]
[1755850247131,1.21640389,113280.0,113270.0,0.16936609]
[1755850247832,1.22684663,113280.0,113270.0,0.16936609]
[1755850250629,1.22684663,113280.0,113270.0,0.44753628]
[1755850250832,1.22684663,113280.0,113270.0,0.16936609]
[1755850253433,0.94867644,113280.0,113270.0,0.16936609]
[1755850253624,1.50501682,113280.0,113270.0,0.16936609]
[1755850261141,0.94867644,113280.0,113270.0,0.16936609]
[1755850261332,0.94867644,113280.0,113270.0,0.44753628]
[1755850261333,1.50501682,113280.0,113270.0,0.44753628]
[1755850261533,1.22684663,113280.0,113270.0,0.44753628]
[1755850263328,1.50501682,113280.0,113270.0,0.16936609]
[1755850264039,1.50501682,113280.0,113270.0,0.44753628]
[1755850264241,1.50501682,113280.0,113270.0,0.16936609]
[1755850264538,1.38726312,113280.0,113270.0,0.16936609]
[1755850269237,0.83092274,113280.0,113270.0,0.16936609]
[1755850269436,0.83092274,113280.0,113270.0,0.13444609]
[1755850269437,1.38726312,113280.0,113270.0,0.13444609]
[1755850269739,1.38726312,113280.0,113270.0,0.16799609]
[1755850273541,1.10909293,113280.0,113270.0,0.16799609]
[1755850273753,1.10885293,113280.0,113270.0,0.16799609]
[1755850273946,1.10885293,113280.0,113270.0,0.44616628]
[1755850276145,1.10885293,113280.0,113270.0,0.16799609]
[1755850276347,1.10885293,113280.0,113270.0,0.44616628]
[1755850279456,0.83068274,113280.0,113270.0,0.44616628]
[1755850279659,1.10885293,113280.0,113270.0,0.44616628]
[1755850281456,0.83068274,113280.0,113270.0,0.44616628]
[1755850281755,1.10885293,113280.0,113270.0,0.44616628]
[1755850283758,0.83068274,113280.0,113270.0,0.44616628]
[1755850284054,1.10885293,113280.0,113270.0,0.44616628]
[1755850284558,1.12720124,113280.0,113270.0,0.44616628]
[1755850284757,0.84903105,113280.0,113270.0,0.44616628]
[1755850284952,1.12720124,113280.0,113270.0,0.44616628]
[1755850285660,1.12720124,113280.0,113270.0,0.16799609]
[1755850285954,1.12720124,113280.0,113270.0,0.44616628]
[1755850287460,0.84903105,113280.0,113270.0,0.44616628]
[1755850287760,1.12720124,113280.0,113270.0,0.44616628]
[1755850288561,1.10885293,113280.0,113270.0,0.44616628]
[1755850288858,1.12720124,113280.0,113270.0,0.44616628]
[1755850291555,1.12720124,113280.0,113270.0,0.16799609]
[1755850291960,1.12720124,113280.0,113270.0,0.44616628]
[1755850292262,0.84903105,113280.0,113270.0,0.44616628]
[1755850292464,1.12720124,113280.0,113270.0,0.44616628]
[1755850293765,0.84903105,113280.0,113270.0,0.44616628]
[1755850293959,1.12720124,113280.0,113270.0,0.44616628]
[1755850294763,0.84903105,113280.0,113270.0,0.44616628]
[1755850295564,1.20983105,113280.0,113270.0,0.44616628]
[1755850295958,1.48800124,113280.0,113270.0,0.16799609]
[1755850296270,1.20983105,113280.0,113270.0,0.44616628]
[1755850296568,1.48800124,113280.0,113270.0,0.44616628]
[1755850296864,1.20983105,113280.0,113270.0,0.44616628]
[1755850297066,1.48800124,113280.0,113270.0,0.44616628]
[1755850298164,1.48800124,113280.0,113270.0,0.16799609]
[1755850298366,1.48800124,113280.0,113270.0,0.44616628]
[1755850298965,1.12720124,113280.0,113270.0,0.44616628]
[1755850299366,0.84903105,113280.0,113270.0,0.44616628]
[1755850304068,0.84903105,113280.0,113270.0,0.16799609]
[1755850304268,0.84903105,113280.0,113270.0,0.44616628]
[1755850306666,1.12720124,113280.0,113270.0,0.44616628]
[1755850306972,0.84903105,113280.0,113270.0,0.44616628]
[1755850309470,0.84903105,113280.0,113270.0,0.16799609]
[1755850309674,0.84903105,113280.0,113270.0,0.44616628]
[1755850309972,0.84903105,113280.0,113270.0,0.16799609]
[1755850310271,0.84903105,113280.0,113270.0,0.44616628]
[1755850310472,0.84903105,113280.0,113270.0,0.16799609]
[1755850310671,0.84903105,113280.0,113270.0,0.44616628]
[1755850311171,0.84903105,113280.0,113270.0,0.16799609]
[1755850311364,0.84903105,113280.0,113270.0,0.44616628]
[1755850312175,0.84903105,113280.0,113270.0,0.16799609]
[1755850312371,0.84903105,113280.0,113270.0,0.44616628]
[1755850314075,1.12720124,113280.0,113270.0,0.44616628]
[1755850314470,0.30696124,113280.0,113270.0,0.44616628]
[1755850314675,1.12632124,113280.0,113270.0,0.44616628]
[1755850315568,0.84815105,113280.0,113270.0,0.44616628]
[1755850316078,0.82980274,113280.0,113270.0,0.44616628]
[1755850316376,0.84810538,113280.0,113270.0,0.44616628]
[1755850317467,1.48707557,113280.0,113270.0,0.39830628]
[1755850317671,1.48707557,113280.0,113270.0,0.38251628]
[1755850318476,1.48707557,113280.0,113270.0,0.10434609]
[1755850318674,0.02571,113270.0,113260.0,0.30978019]
[1755850318871,0.68298283,113270.0,113260.0,0.30978019]
[1755850319272,0.68298283,113270.0,113260.0,0.03161]
[1755850319877,0.68298283,113270.0,113260.0,0.03261]
[1755850320378,0.40481264,113270.0,113260.0,0.03461]
[1755850320678,0.68298283,113270.0,113260.0,0.05807]
[1755850320880,0.40481264,113270.0,113260.0,0.37075019]
[1755850321078,0.68298283,113270.0,113260.0,0.38526019]
[1755850321274,0.68298283,113270.0,113260.0,0.40083019]
[1755850322480,0.75345513,113270.0,113260.0,0.40083019]
[1755850323775,0.75345513,113270.0,113260.0,0.12266]
[1755850323976,0.75345513,113270.0,113260.0,0.40083019]
[1755850324178,0.74310513,113270.0,113260.0,0.12266]
[1755850324378,1.66834513,113270.0,113260.0,0.40083019]
[1755850324577,1.85717513,113270.0,113260.0,0.40083019]
[1755850324777,1.85717513,113270.0,113260.0,0.12266]
[1755850325181,1.85717513,113270.0,113260.0,0.40083019]
[1755850325385,1.85717513,113270.0,113260.0,0.12266]
[1755850325587,1.85717513,113270.0,113260.0,0.40083019]
[1755850326687,1.85717513,113270.0,113260.0,0.12266]
[1755850326874,2.13534532,113270.0,113260.0,0.03626]
[1755850327076,0.04088,113260.0,113250.0,0.04722]
[1755850327279,0.97632302,113260.0,113250.0,0.03165]
[1755850327481,0.97632302,113260.0,113250.0,0.06616]
[1755850327682,0.41998264,113260.0,113250.0,0.06616]
[1755850327883,0.97632302,113260.0,113250.0,0.06616]
[1755850328191,0.97632302,113260.0,113250.0,0.03165]
[1755850328379,0.97632302,113260.0,113250.0,0.03365]
[1755850328585,0.97632302,113260.0,113250.0,0.06816]
[1755850329090,0.41998264,113260.0,113250.0,0.09362]
[1755850329275,0.97632302,113260.0,113250.0,0.09362]
[1755850329690,0.97632302,113260.0,113250.0,0.37179019]
[1755850330084,1.06644302,113260.0,113250.0,0.37179019]
[1755850330984,1.88556302,113260.0,113250.0,0.37179019]
[1755850331382,1.88556302,113260.0,113250.0,0.38630019]
[1755850332188,1.88556302,113260.0,113250.0,0.03565]
[1755850332389,1.88556302,113260.0,113240.0,0.33795019]
[1755850332595,0.31905019,113250.0,113240.0,0.39783019]
[1755850333692,0.31905019,113250.0,113240.0,0.40083019]
[1755850334501,0.31905019,113250.0,113240.0,0.40283019]
[1755850335191,0.04088,113250.0,113240.0,0.40283019]
[1755850335391,0.31905019,113250.0,113240.0,0.40283019]
[1755850335800,0.13984,113250.0,113240.0,0.40283019]
[1755850336099,0.41801019,113250.0,113240.0,0.40283019]
[1755850337806,0.41801019,113250.0,113240.0,0.12466]
[1755850338101,0.41801019,113250.0,113240.0,0.40283019]
[1755850338690,0.41801019,113250.0,113240.0,0.45044036]
[1755850339199,0.13984,113250.0,113240.0,0.47026488]
[1755850339398,0.41801019,113250.0,113240.0,0.47026488]
[1755850340406,0.41801019,113250.0,113240.0,0.74843507]
[1755850340797,0.13984,113250.0,113240.0,0.74843507]
[1755850340992,0.41801019,113250.0,113240.0,0.47026488]
[1755850342000,0.13984,113250.0,113240.0,0.47026488]
[1755850342902,0.93385,113250.0,113240.0,0.74843507]
[1755850343302,0.93485,113250.0,113240.0,0.74543507]
[1755850343607,0.93513,113250.0,113240.0,0.74543507]
[1755850343905,0.95977,113250.0,113240.0,0.74543507]
[1755850344292,0.96077,113250.0,113240.0,0.74343507]
[1755850344917,0.86181,113250.0,113240.0,0.74343507]
[1755850347012,0.86181,113250.0,113240.0,0.18709469]
[1755850347218,0.88047409,113250.0,113240.0,0.74343507]
[1755850351414,1.15864428,113250.0,113240.0,0.74343507]
[1755850352813,1.15864428,113250.0,113240.0,0.18709469]
[1755850353014,1.15864428,113250.0,113240.0,0.74343507]
[1755850354811,0.88047409,113250.0,113240.0,0.74343507]
[1755850355618,0.03675409,113250.0,113240.0,0.74343507]
[1755850356014,0.88027409,113250.0,113240.0,0.74343507]
[1755850361109,1.15844428,113250.0,113240.0,0.74343507]
[1755850361512,0.88027409,113250.0,113240.0,0.74343507]
[1755850363213,0.85535409,113250.0,113240.0,0.74343507]
[1755850363614,0.83954409,113250.0,113240.0,1.42311919]
[1755850364023,0.83954409,113250.0,113240.0,1.144949]
[1755850364515,0.02066409,113250.0,113240.0,1.42311919]
[1755850364916,0.02066409,113250.0,113240.0,1.67311919]
[1755850365219,1.08052,113260.0,113250.0,0.11833]
[1755850365419,1.0992104,113260.0,113250.0,1.08318355]
[1755850365720,0.8375704,113260.0,113250.0,1.08318355]
[1755850366622,0.8395704,113260.0,113250.0,1.08318355]
[1755850367323,0.8415704,113260.0,113250.0,1.08318355]
[1755850369223,0.0226904,113260.0,113250.0,1.08318355]
[1755850369420,0.8415304,113260.0,113250.0,1.08318355]
[1755850369926,0.8415304,113260.0,113250.0,0.52684317]
[1755850370126,0.8415304,113260.0,113250.0,0.80501336]
[1755850370329,0.8556704,113260.0,113250.0,0.80501336]
[1755850371227,0.8593204,113260.0,113250.0,0.80501336]
[1755850371728,0.8603204,113260.0,113250.0,0.80501336]
[1755850372027,0.8626004,113260.0,113250.0,0.80501336]
[1755850375328,0.8854104,113260.0,113250.0,0.80501336]
[1755850375725,0.8854104,113260.0,113250.0,0.52684317]
[1755850375928,0.8854104,113260.0,113250.0,0.80501336]
[1755850377324,0.8626004,113260.0,113250.0,0.80501336]
[1755850377628,0.8414104,113260.0,113250.0,1.17149985]
[1755850378429,0.8414104,113260.0,113250.0,1.20478793]
[1755850378627,0.0226904,113260.0,113250.0,1.20478793]
[1755850378829,0.004,113260.0,113250.0,1.15707476]
[1755850379030,0.004,113260.0,113250.0,2.02342472]
[1755850379227,0.004,113260.0,113250.0,1.97575476]
[1755850379534,0.004,113260.0,113250.0,2.22575476]
[1755850379733,0.004,113260.0,113250.0,2.2892567]
[1755850379934,0.002,113260.0,113250.0,2.2892567]
[1755850380134,0.001,113260.0,113250.0,2.2892567]
[1755850380433,0.002,113260.0,113250.0,2.2892567]
[1755850380629,0.002,113260.0,113250.0,2.22575476]
[1755850380836,0.002,113260.0,113250.0,2.50392495]
[1755850381037,0.10604,113270.0,113260.0,0.1595485]
[1755850381334,0.10604,113270.0,113260.0,1.17027828]
[1755850383134,0.0629,113270.0,113260.0,1.69844847]
[1755850383336,0.0129,113270.0,113260.0,1.65079907]
[1755850388033,0.0129,113270.0,113260.0,1.40079907]
[1755850390841,0.0129,113270.0,113260.0,1.44835446]
[1755850391538,0.0129,113270.0,113260.0,1.40079907]
[1755850392939,0.0129,113270.0,113260.0,0.5662885]
[1755850393141,0.0129,113270.0,113260.0,1.40079907]
[1755850394041,0.0129,113270.0,113260.0,2.13093057]
[1755850394436,0.0129,113270.0,113260.0,2.21923907]
[1755850394638,0.07452,113270.0,113260.0,1.85276038]
[1755850394942,0.09296,113270.0,113260.0,1.85272038]
[1755850395141,0.11577,113270.0,113260.0,1.85272038]
[1755850395742,0.11577,113270.0,113260.0,1.90027424]
[1755850396237,0.11577,113270.0,113260.0,1.34393386]
[1755850396443,0.11577,113270.0,113260.0,1.90027424]
[1755850397141,0.11577,113270.0,113260.0,0.52553386]
[1755850397338,0.11577,113270.0,113260.0,1.08187424]
[1755850397635,0.15991,113270.0,113260.0,1.08187424]
[1755850398740,0.1371,113270.0,113260.0,1.08187424]
[1755850399940,0.16065,113270.0,113260.0,1.08187424]
[1755850402151,0.42038019,113270.0,113260.0,0.49254386]
[1755850402454,0.43882019,113270.0,113260.0,0.80457405]
[1755850402653,0.79962019,113270.0,113260.0,0.40991405]
[1755850402847,0.79962019,113270.0,113260.0,0.39622019]
[1755850403047,1.61790019,113270.0,113260.0,0.39622019]
[1755850404254,1.61790019,113270.0,113260.0,0.11805]
[1755850404455,1.82376019,113270.0,113260.0,0.05486]
[1755850404761,1.84239916,113270.0,113260.0,0.0213]
[1755850405053,1.84239916,113270.0,113260.0,0.33355019]
[1755850405662,1.84239916,113270.0,113260.0,0.36741019]
[1755850406759,1.56422897,113270.0,113260.0,0.36741019]
[1755850407057,1.84239916,113270.0,113260.0,0.36741019]
[1755850407360,1.84239916,113270.0,113260.0,0.08924]
[1755850407659,1.91247596,113270.0,113260.0,0.36741019]
[1755850407855,2.00791596,113270.0,113260.0,0.36741019]
[1755850408260,1.72974577,113270.0,113260.0,0.08924]
[1755850408462,2.00791596,113270.0,113260.0,0.36741019]
[1755850409158,2.00791596,113270.0,113260.0,0.38386019]
[1755850409958,1.64711596,113270.0,113260.0,0.38386019]
[1755850410163,2.05205596,113270.0,113260.0,0.38386019]
[1755850411065,2.05205596,113270.0,113260.0,0.39826019]
[1755850412465,1.77388577,113270.0,113260.0,0.39826019]
[1755850412659,2.05205596,113270.0,113260.0,0.39826019]
[1755850416160,2.05205596,113270.0,113260.0,0.12009]
[1755850416366,2.05205596,113270.0,113260.0,0.39826019]
[1755850418568,1.80205596,113270.0,113260.0,0.39826019]
[1755850418766,1.80205596,113270.0,113260.0,0.38386019]
[1755850420863,1.80205596,113270.0,113260.0,0.35000019]
[1755850423973,1.80205596,113270.0,113260.0,0.07183]
[1755850424163,1.80205596,113270.0,113260.0,0.35000019]
[1755850428767,1.80205596,113270.0,113260.0,0.07183]
[1755850428968,1.80205596,113270.0,113260.0,0.35000019]
[1755850429465,1.80205596,113270.0,113260.0,0.38208019]
[1755850429662,1.80205596,113270.0,113260.0,0.10391]
[1755850429871,1.52388577,113270.0,113260.0,0.38208019]
[1755850430069,1.80205596,113270.0,113260.0,0.38208019]
[1755850431373,1.80205596,113270.0,113260.0,0.42963405]
[1755850432067,1.80205596,113270.0,113260.0,0.44328405]
[1755850433068,1.80205596,113270.0,113260.0,0.16511386]
[1755850433268,1.80205596,113270.0,113260.0,0.44328405]
[1755850434273,1.80205596,113270.0,113260.0,0.16511386]
[1755850434573,0.53191897,113270.0,113260.0,0.83028935]
[1755850434771,0.44435,113310.0,113300.0,0.04761]
[1755850434973,0.06049,113310.0,113300.0,1.35938424]
[1755850435168,0.03114,113310.0,113300.0,1.36004601]
[1755850435369,0.18764902,113320.0,113310.0,0.11637]
[1755850435568,1.04954902,113320.0,113310.0,1.16934532]
[1755850435771,0.20872902,113320.0,113310.0,0.61300494]
[1755850436068,0.20872902,113320.0,113310.0,1.16934532]
[1755850436270,0.20872902,113320.0,113310.0,1.16860888]
[1755850437066,0.17613902,113320.0,113310.0,0.89080691]
[1755850437267,0.17613902,113320.0,113310.0,0.84324147]
[1755850437769,0.17813902,113320.0,113310.0,0.84324147]
[1755850439072,0.19657902,113320.0,113310.0,0.84324147]
[1755850439272,0.21072902,113320.0,113310.0,0.84324147]
[1755850440172,0.21072902,113320.0,113310.0,0.5654395]
[1755850440372,0.21072902,113320.0,113310.0,0.84324147]
[1755850440573,0.21072902,113320.0,113310.0,0.5654395]
[1755850441068,0.21072902,113320.0,113310.0,0.84324147]
[1755850442582,0.14177902,113320.0,113310.0,0.84324147]
[1755850442776,0.14177902,113320.0,113310.0,1.12104344]
[1755850442982,0.13179902,113320.0,113310.0,1.12104344]
[1755850443183,0.12979902,113320.0,113310.0,0.84524147]
[1755850443980,0.12979902,113320.0,113310.0,0.84424147]
[1755850444282,0.27108,113330.0,113310.0,1.02077647]
[1755850444483,0.49617,113330.0,113320.0,0.75497197]
[1755850445281,0.52513086,113330.0,113320.0,0.75497197]
[1755850445485,0.49617,113330.0,113320.0,0.75497197]
[1755850445984,0.49717,113330.0,113320.0,0.47717]
[1755850446283,0.5003,113330.0,113320.0,0.75497197]
[1755850446784,0.31658,113330.0,113320.0,0.75497197]
[1755850447378,0.31758,113330.0,113320.0,0.75497197]
[1755850448884,0.31758,113330.0,113320.0,0.84323367]
[1755850449181,0.29424,113330.0,113320.0,0.75497197]
[1755850449378,0.29925,113330.0,113320.0,0.75497197]
[1755850449579,0.31758,113330.0,113320.0,0.75497197]
[1755850449883,0.31758,113330.0,113320.0,0.5654317]
[1755850450082,0.31758,113330.0,113320.0,0.84323367]
[1755850450481,0.31758,113330.0,113320.0,0.75497197]
[1755850450886,0.31758,113330.0,113320.0,0.84323367]
[1755850451189,0.06494,113330.0,113320.0,0.84323367]
[1755850451890,0.06494,113330.0,113320.0,0.75497197]
[1755850452192,0.06494,113330.0,113320.0,0.84323367]
[1755850453185,0.06494,113330.0,113320.0,0.75497197]
[1755850458493,0.06494,113330.0,113320.0,0.47717]
[1755850458692,0.06494,113330.0,113320.0,0.75497197]
[1755850462098,0.04661,113330.0,113320.0,0.75497197]
[1755850462896,0.02817,113330.0,113320.0,0.75497197]
[1755850463197,0.06478961,113330.0,113320.0,0.75497197]
[1755850463792,0.02017961,113330.0,113320.0,0.75497197]
[1755850464101,0.83685961,113330.0,113320.0,0.75497197]
[1755850464902,0.02017961,113330.0,113320.0,0.75497197]
[1755850465405,0.02017961,113330.0,113320.0,0.52473544]
[1755850465603,0.02017961,113330.0,113320.0,0.80253741]
[1755850467007,0.02017961,113330.0,113320.0,0.89079911]
[1755850467301,1.3152,113350.0,113340.0,0.11692]
[1755850467504,0.4986,113350.0,113340.0,0.39472197]
[1755850467809,0.3608,113350.0,113340.0,0.39472197]
[1755850468000,0.3608,113350.0,113340.0,0.67252394]
[1755850468200,0.3608,113350.0,113340.0,0.39472197]
[1755850468602,0.3618,113350.0,113340.0,0.39472197]
[1755850468808,0.001,113350.0,113340.0,1.08093042]
[1755850469008,0.001,113350.0,113340.0,0.80312845]
[1755850469216,0.1680839,113360.0,113340.0,1.08093042]
[1755850469514,0.1680839,113360.0,113350.0,0.75552197]
[1755850469715,0.14308,113360.0,113350.0,0.75552197]
[1755850470221,0.22839,113360.0,113350.0,0.75552197]
[1755850470409,0.22939,113360.0,113350.0,0.75552197]
[1755850470913,0.001,113360.0,113350.0,0.75552197]
[1755850472916,1.24111638,113370.0,113350.0,0.75552197]
[1755850473116,0.001,113360.0,113350.0,0.75552197]
[1755850474114,1.24211638,113370.0,113360.0,0.0696]
[1755850474421,1.24211638,113370.0,113360.0,0.11692]
[1755850474725,1.24111638,113370.0,113360.0,0.11692]
[1755850474918,1.24710638,113370.0,113360.0,0.11692]
[1755850475225,1.27172638,113370.0,113360.0,0.11692]
[1755850476427,1.27272638,113370.0,113360.0,0.11692]
[1755850477419,0.91192638,113370.0,113360.0,0.47772]
[1755850477612,0.92793638,113370.0,113360.0,0.47772]
[1755850478117,0.93868638,113370.0,113360.0,0.44569]
[1755850478325,0.93868638,113370.0,113360.0,0.47772]
[1755850479225,0.95669745,113370.0,113360.0,0.47772]
[1755850479419,1.59529942,113370.0,113360.0,0.08489]
[1755850479626,1.59529942,113370.0,113360.0,0.05386]
[1755850479827,1.59529942,113370.0,113360.0,0.11692]
[1755850480028,1.31749745,113370.0,113360.0,0.11692]
[1755850480427,0.95669745,113370.0,113360.0,0.11692]